bitfinex-derivatives/quotes_ETHF0:USTF0_20250903
["timestamp","ask_amount","ask_price","bid_price","bid_amount"]
[1756904698305,0.6859,4365.6,4365.5,0.4061]
[1756904698706,0.6859,4365.6,4365.5,0.7152]
[1756904700002,0.6859,4365.6,4365.5,0.4061]
[1756904700197,0.387,4365.2,4365.1,0.2001]
[1756904700403,0.6859,4365.2,4365.1,0.2001]
[1756904700598,0.2989,4365.9,4365.2,0.3091]
[1756904700797,0.1161,4366.0,4365.7,0.7152]
[1756904700798,0.74383768,4365.8,4365.7,0.7152]
[1756904700998,1.04273768,4365.8,4365.7,0.7152]
[1756904701807,0.4926,4365.8,4365.7,0.7152]
[1756904703108,0.2989,4366.2,4365.7,0.7152]
[1756904703313,0.2989,4366.0,4365.8,0.3091]
[1756904703611,0.4926,4365.9,4365.8,0.7152]
[1756904703811,0.6859,4365.9,4365.8,0.7152]
[1756904704405,0.6859,4365.9,4365.8,0.4061]
[1756904704603,0.2989,4365.8,4365.1,5.165]
[1756904704802,0.6859,4365.2,4365.1,5.8802]
[1756904705208,0.1161,4366.0,4365.1,5.5711]
[1756904705406,0.6859,4365.8,4365.7,0.7152]
[1756904705610,1.2357714,4365.8,4365.1,5.165]
[1756904705813,0.6859,4365.2,4365.1,5.3651]
[1756904706008,0.6859,4365.2,4365.1,0.2001]
[1756904706205,0.1161,4365.5,4365.1,0.7152]
[1756904706410,0.1937,4365.5,4365.4,0.7152]
[1756904707416,0.4926,4365.5,4365.4,0.7152]
[1756904707612,0.6859,4365.5,4365.4,0.7152]
[1756904707917,0.802,4365.5,4365.4,0.4061]
[1756904708123,0.1937,4365.5,4365.4,0.7152]
[1756904708311,0.415,4366.0,4365.5,0.4262]
[1756904708503,0.802,4366.0,4365.9,0.7152]
[1756904708813,1.35196875,4366.0,4365.9,0.7152]
[1756904709011,0.54996875,4366.0,4365.9,0.7152]
[1756904709209,0.651,4366.5,4366.1,0.3091]
[1756904709210,0.2989,4366.4,4366.1,0.3091]
[1756904709410,0.6859,4366.4,4366.3,0.7152]
[1756904709611,1.23587339,4366.4,4366.3,0.7152]
[1756904710116,1.23587339,4366.4,4365.9,0.3091]
[1756904710318,0.387,4366.4,4365.7,0.3091]
[1756904710516,0.6859,4366.3,4366.2,0.2001]
[1756904710713,0.6859,4366.3,4366.2,0.7152]
[1756904711911,0.6859,4366.3,4366.2,41.5152]
[1756904712711,1.23591187,4366.3,4366.2,41.2061]
[1756904712907,0.93701187,4366.3,4366.2,41.499]
[1756904713113,1.23231187,4366.3,4366.2,40.8]
[1756904713410,1.23231187,4366.3,4366.2,41.0929]
[1756904714312,1.23231187,4366.3,4366.2,40.8]
[1756904714507,1.23231187,4366.3,4365.8,0.2929]
[1756904714715,0.6878,4365.9,4365.8,0.192]
[1756904715319,1.23894332,4365.9,4365.8,0.192]
[1756904715519,1.23894332,4365.9,4365.8,0.6944]
[1756904716321,0.55114332,4365.9,4365.8,0.6944]
[1756904716714,0.2953,4366.7,4365.8,0.98112727]
[1756904717019,1.23913402,4366.6,4366.5,0.6944]
[1756904720822,0.1209,4366.5,4366.0,0.1213]
[1756904721121,0.4913,4366.1,4366.0,0.4015]
[1756904721313,0.196,4366.1,4366.0,0.5228]
[1756904721514,0.55133402,4366.1,4366.0,41.3228]
[1756904721714,0.2953,4366.4,4366.0,41.60951934]
[1756904721916,0.55129114,4366.3,4366.2,0.6944]
[1756904722112,0.74729114,4366.3,4366.2,0.6944]
[1756904722526,1.04241221,4366.3,4366.2,0.6944]
[1756904723030,1.23891221,4366.3,4366.2,0.6944]
[1756904723832,1.23891221,4366.3,4366.2,0.192]
[1756904724532,1.23891221,4366.3,4366.2,0.6944]
[1756904724834,0.74711221,4366.3,4366.2,0.6944]
[1756904725230,0.55111221,4366.3,4366.2,0.6944]
[1756904725532,0.2953,4366.9,4366.3,0.2929]
[1756904725734,0.6878,4366.9,4366.8,0.6944]
[1756904725934,1.23861961,4366.9,4366.8,0.6944]
[1756904726543,0.6878,4366.9,4366.8,0.6944]
[1756904726829,1.22671681,4367.9,4366.8,0.6944]
[1756904726830,0.2953,4367.6,4366.9,0.2929]
[1756904727030,0.196,4367.6,4367.5,0.8157]
[1756904727233,0.6878,4367.6,4367.5,0.6944]
[1756904727435,0.74673551,4367.6,4367.5,0.8157]
[1756904727632,0.2953,4367.9,4367.5,0.8157]
[1756904727837,1.3209,4368.0,4367.5,0.8157]
[1756904727838,0.55095989,4367.8,4367.7,0.4015]
[1756904728029,1.2,4368.0,4367.7,0.4015]
[1756904728224,0.746998,4367.9,4367.8,0.6944]
[1756904728424,0.4913,4367.9,4367.8,0.6944]
[1756904728827,1.2,4368.0,4367.9,0.6944]
[1756904729428,1.2,4368.0,4367.9,0.92334]
[1756904729829,1.2,4368.0,4367.9,0.6944]
[1756904730039,1.6913,4368.0,4367.9,0.6944]
[1756904730433,0.2953,4367.9,4367.2,0.2929]
[1756904730637,0.2953,4367.9,4367.1,40.8]
[1756904730638,0.2953,4367.2,4367.1,40.8]
[1756904730839,0.196,4366.5,4366.4,0.7209]
[1756904731033,0.2953,4367.2,4367.1,0.4015]
[1756904731238,0.2953,4367.9,4367.2,0.2929]
[1756904731445,0.2953,4367.2,4367.1,40.8]
[1756904731640,0.196,4366.6,4366.5,0.6375]
[1756904731836,0.6878,4366.6,4366.5,0.98020198]
[1756904732036,0.6878,4366.6,4366.5,0.4015]
[1756904732238,0.1209,4366.5,4366.2,0.2929]
[1756904732439,0.1209,4366.5,4366.2,0.4849]
[1756904732440,0.4913,4366.3,4366.2,0.4849]
[1756904732637,0.196,4366.3,4366.2,0.6944]
[1756904732945,0.4913,4366.7,4366.6,0.192]
[1756904733135,0.6878,4366.7,4366.6,0.6944]
[1756904733340,0.6878,4366.7,4366.6,0.4015]
[1756904733739,0.196,4366.0,4365.9,0.429]
[1756904733946,0.4913,4366.0,4365.9,0.9314]
[1756904734243,0.196,4366.0,4365.9,0.9314]
[1756904734445,0.2953,4366.4,4366.0,0.4142]
[1756904734645,0.2953,4366.9,4366.3,0.6944]
[1756904734842,0.3925,4366.4,4366.3,0.6944]
[1756904735042,0.6878,4366.4,4366.3,0.192]
[1756904735242,0.2953,4366.3,4366.0,0.2929]
[1756904735444,0.4913,4366.1,4366.0,0.6944]
[1756904735851,0.6878,4366.1,4366.0,0.4015]
[1756904736042,0.3925,4365.7,4365.6,40.8]
[1756904736244,0.6878,4365.7,4365.6,41.37915643]
[1756904737045,0.1209,4366.0,4365.9,0.192]
[1756904737046,0.3169,4366.0,4365.9,0.192]
[1756904737253,0.8087,4366.0,4365.9,0.192]
[1756904737756,0.3925,4365.7,4364.5,6.44113638]
[1756904737947,0.196,4365.1,4365.0,0.5228]
[1756904738145,0.196,4365.1,4365.0,1.04618646]
[1756904738346,0.196,4365.1,4365.0,42.13908646]
[1756904738846,0.1209,4366.0,4365.3,0.4015]
[1756904739046,0.6878,4365.9,4365.8,0.192]
[1756904739753,0.3925,4365.9,4365.1,0.237]
[1756904740053,0.6878,4365.8,4365.7,0.192]
[1756904740454,0.196,4365.8,4365.7,0.6944]
[1756904740747,0.4913,4366.4,4366.3,0.4015]
[1756904740952,0.4913,4366.4,4366.3,0.6944]
[1756904741454,0.6878,4366.4,4366.3,0.4015]
[1756904741850,0.6878,4366.4,4366.3,0.6964]
[1756904742353,0.1209,4367.0,4366.3,0.6964]
[1756904742354,0.3097,4366.9,4366.4,0.2949]
[1756904742550,0.2095,4366.5,4366.4,0.6846]
[1756904742754,0.5192,4366.5,4366.4,0.6846]
[1756904743951,0.7206,4366.5,4366.4,0.3897]
[1756904744152,0.8459,4366.5,4366.4,0.1974]
[1756904744352,0.3097,4366.4,4366.1,41.0949]
[1756904745058,0.5111,4366.4,4366.3,0.1974]
[1756904745255,0.7206,4366.4,4366.3,0.1974]
[1756904745657,0.3097,4366.4,4366.3,0.6846]
[1756904745855,0.3097,4366.9,4366.3,0.6846]
[1756904746061,0.1253,4368.5,4367.7,0.6846]
[1756904746062,0.5192,4367.8,4367.7,0.6846]
[1756904746252,1.2,4368.0,4367.8,0.2949]
[1756904746563,0.7206,4367.9,4367.8,0.6846]
[1756904746757,0.7206,4367.9,4367.8,0.3897]
[1756904747260,0.7206,4367.9,4367.8,0.6846]
[1756904747757,1.2,4368.0,4367.8,0.3897]
[1756904748064,1.2,4368.0,4367.9,0.97084682]
[1756904748662,1.2,4368.0,4367.9,41.77084682]
[1756904750561,1.2,4368.0,4367.9,45.77084682]
[1756904751363,0.17,4368.9,4367.9,45.77084682]
[1756904751364,0.17,4368.9,4368.8,0.3897]
[1756904751560,0.17,4368.9,4368.8,0.9226]
[1756904751963,0.5192,4369.8,4369.7,0.1974]
[1756904752159,0.1253,4371.0,4369.7,0.3897]
[1756904752365,0.7206,4370.4,4370.3,0.1974]
[1756904755363,0.7206,4370.4,4370.0,0.2949]
[1756904755364,0.3097,4370.3,4370.0,0.2949]
[1756904755663,0.7206,4370.1,4370.0,0.4923]
[1756904756258,0.7206,4370.1,4370.0,0.6846]
[1756904756960,0.3097,4370.9,4370.1,0.2949]
[1756904757160,0.3097,4370.9,4370.2,0.2949]
[1756904757563,0.7206,4370.9,4370.8,0.1974]
[1756904757863,0.1253,4371.5,4370.8,0.6846]
[1756904758069,0.3097,4371.4,4370.8,0.6846]
[1756904758267,0.7206,4370.9,4370.8,0.3897]
[1756904758467,0.7206,4370.9,4370.8,40.9974]
[1756904758969,0.7206,4370.9,4370.8,41.2923]
[1756904759868,0.2095,4370.9,4370.8,41.2923]
[1756904760161,0.1253,4371.5,4371.2,0.3897]
[1756904760162,0.3097,4371.3,4371.2,0.3897]
[1756904760371,0.1253,4372.0,4371.2,0.6846]
[1756904760558,0.3097,4371.9,4371.2,0.6846]
[1756904760760,0.5192,4371.9,4371.8,0.1974]
[1756904760957,0.5192,4371.9,4371.8,0.6846]
[1756904760958,0.7206,4371.9,4371.8,0.6846]
[1756904761256,0.3097,4372.2,4371.8,0.6846]
[1756904761457,0.3097,4372.2,4371.5,0.3642]
[1756904761458,0.1253,4372.5,4371.9,41.0949]
[1756904761659,0.6364,4372.0,4371.9,40.8]
[1756904761865,0.6364,4372.0,4371.4,0.2949]
[1756904762064,0.1253,4372.0,4371.4,0.8506]
[1756904762266,0.5192,4372.1,4372.0,0.6846]
[1756904762664,0.1253,4372.5,4372.0,0.6846]
[1756904762864,0.3097,4372.4,4372.1,0.2949]
[1756904763062,0.5192,4372.4,4372.3,0.3897]
[1756904763260,0.5192,4372.4,4372.3,0.6846]
[1756904764866,0.1253,4372.5,4372.0,0.238]
[1756904765073,0.7206,4372.1,4372.0,0.4354]
[1756904765372,0.7206,4372.1,4372.0,0.1974]
[1756904765867,0.1253,4372.5,4372.0,0.3897]
[1756904766068,0.1253,4373.0,4372.8,0.1974]
[1756904766069,0.7206,4372.9,4372.8,0.1974]
[1756904766372,0.7206,4372.9,4372.8,0.6846]
[1756904766870,0.7206,4372.9,4372.5,0.16]
[1756904767069,0.7206,4372.8,4372.7,0.1974]
[1756904767266,0.7206,4372.8,4372.4,0.237]
[1756904767465,0.1253,4373.0,4372.4,0.1974]
[1756904767466,0.8459,4372.5,4372.4,0.1974]
[1756904768060,0.8459,4372.5,4372.4,40.9974]
[1756904768265,0.8459,4372.5,4372.4,41.2923]
[1756904768461,0.7206,4372.5,4372.4,41.2923]
[1756904768670,0.2095,4372.5,4372.4,41.2923]
[1756904769066,0.3097,4372.8,4372.4,41.2923]
[1756904769272,0.2095,4372.8,4372.7,0.6846]
[1756904769571,0.238,4373.9,4372.7,0.3897]
[1756904769772,0.3097,4373.4,4372.8,0.2949]
[1756904770574,0.5192,4373.9,4373.8,0.4923]
[1756904770769,0.2095,4373.9,4373.8,0.6846]
[1756904770970,32.954,4375.4,4374.0,0.1262]
[1756904770971,0.3097,4374.8,4374.0,0.1262]
[1756904771167,0.3097,4374.8,4374.1,45.36739083]
[1756904771465,0.1253,4375.5,4374.2,0.2949]
[1756904771669,0.3147,4375.4,4374.2,0.2949]
[1756904772065,0.3147,4375.4,4374.7,0.2951]
[1756904772273,0.3147,4376.9,4375.6,0.2951]
[1756904772472,0.3147,4376.7,4375.7,0.238]
[1756904772674,0.3147,4376.7,4375.7,0.239]
[1756904772976,0.3147,4376.7,4375.2,0.2951]
[1756904773173,0.3147,4376.9,4376.0,4.03449083]
[1756904773373,0.3147,4376.9,4376.1,0.2951]
[1756904775477,0.3147,4376.9,4376.0,0.1251]
[1756904775478,0.3147,4376.9,4376.3,0.2951]
[1756904775877,0.3147,4376.9,4376.3,0.5341]
[1756904776279,0.3147,4376.9,4376.4,0.2951]
[1756904776674,0.118,4377.5,4376.5,40.8]
[1756904776876,0.118,4377.0,4376.5,40.8]
[1756904777779,0.34648001,4377.0,4376.0,0.2951]
[1756904777979,0.3147,4376.9,4376.0,0.2951]
[1756904778177,0.54319,4376.9,4376.0,0.2951]
[1756904778480,0.3147,4376.9,4376.1,40.8]
[1756904779285,0.3147,4376.9,4376.2,0.2951]
[1756904779473,0.3147,4376.9,4376.1,40.8]
[1756904779474,0.118,4377.0,4376.4,4.03449083]
[1756904780077,0.3147,4377.2,4376.5,0.4202]
[1756904780277,0.3147,4377.2,4376.6,0.2951]
[1756904780476,1.318,4378.0,4376.6,0.2951]
[1756904780477,1.5147,4378.0,4377.1,0.2951]
[1756904780788,1.2,4378.0,4377.9,4.32959083]
[1756904780972,1.2,4378.0,4377.9,4.56859083]
[1756904781286,1.22671681,4379.9,4378.6,0.2951]
[1756904781588,0.3147,4380.2,4379.2,4.32959083]
[1756904781774,0.5425346,4380.1,4379.3,41.039]
[1756904781979,0.5425346,4380.0,4379.3,41.039]
[1756904782180,0.3147,4380.2,4379.3,41.039]
[1756904782382,0.118,4381.0,4379.8,0.2951]
[1756904782582,0.54187396,4380.9,4380.3,0.2951]
[1756904782884,0.3147,4380.7,4379.3,41.039]
[1756904783073,0.3147,4380.4,4379.6,4.03449083]
[1756904783277,0.118,4381.0,4379.7,0.2951]
[1756904783476,0.85598951,4380.9,4379.8,0.241]
[1756904783675,0.3147,4380.7,4379.8,0.241]
[1756904783883,0.4327,4380.5,4379.3,41.0951]
[1756904784083,0.3147,4380.4,4379.4,0.241]
[1756904784282,0.3147,4380.4,4379.5,0.2951]
[1756904784479,0.3147,4380.4,4379.5,0.3599]
[1756904785184,0.3147,4380.4,4379.6,0.242]
[1756904785482,0.3147,4380.4,4379.7,0.2951]
[1756904785781,0.3147,4380.4,4379.8,0.242]
[1756904786380,0.3147,4380.4,4379.6,0.2951]
[1756904787488,0.3147,4380.9,4379.8,0.2951]
[1756904787980,0.3147,4380.9,4379.3,40.8]
[1756904787981,0.54299001,4380.9,4379.3,40.8]
[1756904788281,0.118,4381.0,4379.4,0.242]
[1756904788482,1.08109679,4380.9,4379.5,0.3599]
[1756904788681,0.543,4380.9,4379.5,0.2951]
[1756904788881,0.118,4381.0,4379.3,40.8]
[1756904788882,0.76639844,4380.8,4379.3,40.8]
[1756904789088,0.3147,4380.7,4379.4,0.242]
[1756904789384,0.3147,4380.4,4379.3,40.8]
[1756904789592,0.3147,4379.4,4379.3,40.8]
[1756904789978,4.3147,4379.4,4378.6,0.2951]
[1756904790182,0.118,4379.5,4377.5,0.0648]
[1756904790183,0.118,4379.5,4377.9,0.2951]
[1756904790379,0.3147,4379.4,4377.9,0.2951]
[1756904790586,0.3147,4379.3,4378.1,40.8]
[1756904790780,0.173,4379.2,4378.1,40.8]
[1756904790981,0.118,4379.0,4378.1,40.8]
[1756904791187,0.3147,4378.4,4377.4,0.242]
[1756904791387,0.3147,4378.4,4377.0,0.242]
[1756904791589,0.53873686,4378.3,4377.0,0.242]
[1756904791883,0.3147,4377.9,4377.1,40.8]
[1756904792076,0.53878033,4377.8,4377.1,40.8]
[1756904792280,0.53878033,4377.7,4377.1,40.8]
[1756904792476,0.53878033,4377.6,4377.1,40.8]
[1756904792685,1.20958549,4379.2,4378.0,0.1251]
[1756904792884,0.4327,4379.5,4378.0,0.1251]
[1756904792885,0.3147,4379.9,4378.2,0.41101]
[1756904793085,0.118,4379.5,4378.8,4.03449083]
[1756904793286,0.3147,4378.9,4378.3,4.03449083]
[1756904793482,0.3147,4378.9,4378.3,4.27949083]
[1756904794084,0.3147,4378.9,4378.8,4.03449083]
[1756904794987,0.3147,4378.9,4378.6,4.27949083]
[1756904795881,0.3147,4379.4,4378.6,4.27949083]
[1756904796082,0.118,4380.0,4379.3,4.03449083]
[1756904796288,0.3147,4379.9,4379.8,4.03449083]
[1756904797990,0.3147,4379.9,4379.3,0.245]
[1756904798189,0.118,4379.5,4379.3,0.06]
[1756904798389,0.3147,4379.4,4379.3,0.06]
[1756904798589,0.3147,4379.4,4379.3,40.86]
[1756904799094,0.3147,4379.4,4379.3,40.8]
[1756904800796,4.3147,4379.4,4376.1,0.18237854]
[1756904800989,4.3147,4379.4,4377.6,4.03449083]
[1756904800990,1.73546521,4379.0,4377.6,4.03449083]
[1756904801298,0.3147,4378.7,4377.7,40.8]
[1756904801498,1.61746521,4378.8,4377.7,40.8]
[1756904801499,0.118,4378.5,4377.7,40.8]
[1756904801906,0.118,4378.5,4378.2,4.03449083]
[1756904802788,0.2949,4378.4,4378.2,4.03449083]
[1756904803288,0.119,4378.0,4377.7,45.07949083]
[1756904803487,0.119,4378.0,4377.5,0.245]
[1756904803794,0.2949,4377.9,4377.7,4.03449083]
[1756904804000,0.119,4378.0,4377.7,4.03449083]
[1756904804297,0.2949,4377.9,4377.6,40.8]
[1756904804498,0.119,4378.0,4377.6,40.8]
[1756904804687,0.5384593,4377.9,4377.6,40.8]
[1756904804893,0.2949,4377.7,4377.6,40.8]
[1756904805093,0.8333593,4377.7,4377.6,40.8]
[1756904805290,0.119,4377.0,4376.7,4.27949083]
[1756904805494,0.119,4377.0,4376.7,4.03449083]
[1756904805495,0.2949,4376.8,4376.7,4.03449083]
[1756904805795,0.8333593,4376.8,4376.7,44.83449083]
[1756904806399,0.8333593,4376.8,4376.7,40.8]
[1756904806596,0.5384593,4376.8,4376.3,4.03449083]
[1756904806901,0.5384593,4376.7,4376.3,4.03449083]
[1756904807105,0.5384593,4376.6,4376.4,40.8]
[1756904807295,0.8333593,4376.5,4376.4,40.8]
[1756904807799,0.2949,4377.7,4376.4,45.045]
[1756904808104,1.73646521,4378.0,4376.5,0.5335547]
[1756904808295,1.73646521,4378.0,4377.5,4.03449083]
[1756904808696,0.2949,4377.9,4377.5,4.03449083]
[1756904808891,1.73646521,4378.0,4377.5,4.03449083]
[1756904809197,0.2949,4377.9,4377.5,4.27949083]
[1756904809392,0.119,4378.5,4377.5,4.27949083]
[1756904809593,0.119,4378.5,4377.8,4.64354761]
[1756904809797,0.2949,4378.6,4377.9,0.245]
[1756904811703,0.119,4378.5,4377.9,0.245]
[1756904812101,0.119,4379.0,4378.2,4.64354761]
[1756904812301,0.119,4379.0,4378.3,0.53278726]
[1756904812495,0.2949,4379.1,4378.4,40.8]
[1756904812701,0.2949,4379.1,4378.5,0.244]
[1756904812900,0.2949,4378.9,4378.5,0.244]
[1756904813708,0.119,4379.0,4378.5,0.244]
[1756904813904,0.119,4379.0,4378.4,40.8]
[1756904814205,0.4139,4378.5,4378.4,40.8]
[1756904814405,0.119,4378.5,4377.3,0.244]
[1756904814606,0.2949,4378.4,4377.4,0.53299704]
[1756904814802,0.2949,4378.4,4377.5,41.08899704]
[1756904815004,0.2949,4378.4,4377.6,0.53399704]
[1756904815207,0.2949,4378.4,4377.6,0.245]
[1756904815399,0.2949,4378.4,4377.7,0.28904991]
[1756904815595,0.2949,4378.4,4377.8,0.53404991]
[1756904815800,0.2949,4378.4,4377.9,0.28904991]
[1756904816106,0.2949,4378.4,4378.0,0.28904991]
[1756904816311,0.119,4378.5,4378.1,0.28904991]
[1756904816507,0.2949,4378.4,4378.2,0.28904991]
[1756904816710,0.119,4378.5,4377.6,0.244]
[1756904816911,0.119,4378.0,4377.7,0.28915351]
[1756904817112,0.119,4378.0,4377.5,40.8]
[1756904817309,0.2949,4377.9,4377.6,0.28928528]
[1756904817607,0.119,4378.0,4377.0,0.245]
[1756904817912,0.119,4378.0,4376.4,4.64354761]
[1756904817913,0.119,4377.5,4377.1,0.28931631]
[1756904818115,0.2949,4377.4,4377.2,41.08931631]
[1756904818313,0.2949,4377.4,4377.3,0.28931631]
[1756904819315,0.2949,4377.4,4376.3,0.244]
[1756904819505,0.2949,4377.4,4376.4,0.28948043]
[1756904819711,0.2949,4377.2,4376.5,0.28948043]
[1756904820006,0.2949,4376.9,4376.6,0.28948043]
[1756904820206,0.119,4377.0,4376.7,0.28948043]
[1756904820407,0.2949,4376.9,4376.8,0.28948043]
[1756904821110,0.2949,4376.8,4376.5,40.8]
[1756904821308,0.2949,4376.6,4376.1,4.64354761]
[1756904821514,0.2949,4376.4,4376.2,0.28947192]
[1756904821818,0.53550378,4376.3,4376.2,40.8]
[1756904822020,0.83040378,4376.3,4376.2,40.8]
[1756904822312,0.2949,4376.2,4375.1,4.64354761]
[1756904822517,0.4139,4376.0,4375.2,0.28946685]
[1756904822814,0.4139,4376.0,4375.3,41.08946685]
[1756904823019,0.119,4376.0,4375.4,0.28946685]
[1756904823212,0.2949,4375.4,4375.3,40.8]
[1756904823515,0.119,4375.0,4373.2,1.64703175]
[1756904823720,0.119,4375.0,4372.8,0.1737997]
[1756904823721,0.4069,4374.9,4373.3,0.2897209]
[1756904823912,0.53523874,4374.8,4373.4,41.0897209]
[1756904824110,0.119,4374.5,4373.4,40.8]
[1756904824316,0.2949,4374.4,4373.4,40.8]
[1756904824513,0.2949,4373.4,4372.8,0.1737997]
[1756904824720,0.4139,4373.5,4372.9,0.28934894]
[1756904825020,0.119,4373.5,4373.0,40.8]
[1756904825517,0.2949,4373.4,4373.0,40.8]
[1756904825917,0.119,4373.0,4372.8,0.1737997]
[1756904826117,0.2949,4372.9,4372.8,0.1737997]
[1756904827218,0.3629,4372.9,4372.8,0.1737997]
[1756904827421,0.3629,4372.9,4371.7,40.8]
[1756904827422,4.0,4372.9,4371.7,40.8]
[1756904827618,0.2949,4372.7,4371.7,40.8]
[1756904828224,0.1143,4372.8,4371.7,40.8]
[1756904828225,0.2949,4372.4,4371.7,40.8]
[1756904828415,0.119,4372.5,4371.7,40.8]
[1756904828615,0.119,4372.5,4371.0,0.245]
[1756904828616,0.2949,4372.4,4371.0,0.245]
[1756904829319,0.119,4372.5,4371.1,40.8]
[1756904829821,0.119,4372.5,4371.2,4.64354761]
[1756904829822,0.5399,4372.4,4371.2,4.64354761]
[1756904830030,0.5399,4372.4,4371.3,0.1739]
[1756904832631,0.2949,4372.4,4371.3,0.1739]
[1756904833621,0.2963,4372.4,4371.1,40.8]
[1756904834531,0.364,4372.5,4371.1,40.8]
[1756904834730,0.1193,4371.5,4371.1,40.8]
[1756904835327,0.2963,4371.4,4371.1,40.8]
[1756904836027,0.1193,4371.5,4371.1,40.8]
[1756904836926,0.2963,4371.4,4370.6,0.1738]
[1756904837135,0.2963,4371.4,4370.4,0.244]
[1756904837321,0.1193,4371.5,4370.5,40.8]
[1756904837725,0.2963,4371.4,4370.5,40.8]
[1756904837932,0.1193,4371.5,4370.5,40.8]
[1756904838127,0.2963,4371.4,4370.5,40.8]
[1756904838828,0.1193,4371.5,4370.5,40.8]
[1756904839127,0.2963,4371.4,4370.5,40.8]
[1756904839530,0.3203,4371.5,4370.5,40.8]
[1756904839725,0.2963,4370.9,4370.5,40.8]
[1756904839928,0.2963,4370.9,4370.1,0.244]
[1756904840130,0.2963,4370.9,4369.9,0.1738]
[1756904840131,0.2963,4370.9,4369.5,0.244]
[1756904840429,0.1193,4371.0,4369.6,40.8]
[1756904840626,0.2963,4370.8,4369.6,40.8]
[1756904840827,0.47283,4370.9,4369.6,40.8]
[1756904841027,0.2963,4370.9,4369.7,0.1738]
[1756904841234,0.2963,4370.9,4369.8,0.1738]
[1756904841428,0.2963,4370.9,4369.9,0.1738]
[1756904841636,0.2963,4370.9,4370.0,0.0866]
[1756904841835,0.2963,4370.9,4370.1,0.1738]
[1756904842629,0.2963,4370.9,4369.8,0.244]
[1756904843031,0.2963,4370.9,4369.7,0.1738]
[1756904843239,0.1193,4371.5,4369.6,41.044]
[1756904843240,0.4156,4371.5,4370.4,0.1738]
[1756904843539,0.4156,4371.5,4370.5,0.1738]
[1756904844736,0.4156,4371.5,4370.6,0.22877999]
[1756904844936,0.4156,4371.5,4370.7,0.1738]
[1756904845334,0.2963,4371.4,4370.1,0.1738]
[1756904846642,0.2963,4370.4,4368.6,5.05550761]
[1756904846935,0.1193,4370.5,4369.4,0.4178]
[1756904847838,0.2963,4369.9,4369.0,0.1738]
[1756904848642,0.1193,4370.0,4369.0,0.1738]
[1756904848939,0.2963,4369.9,4369.0,0.1738]
[1756904849132,0.1193,4370.0,4369.2,0.1738]
[1756904849337,0.2963,4369.9,4369.2,0.1738]
[1756904849738,0.2963,4369.9,4369.3,40.8]
[1756904850042,0.244,4370.3,4369.4,0.1738]
[1756904850242,0.5403,4370.3,4369.4,0.1738]
[1756904851441,0.2963,4370.1,4369.3,40.8]
[1756904851640,0.2963,4369.8,4369.3,40.8]
[1756904851839,0.2963,4369.4,4369.3,40.8]
[1756904852138,0.2963,4369.4,4369.3,41.08913761]
[1756904852839,0.4107,4369.7,4369.4,0.1738]
[1756904853043,0.4107,4369.7,4369.6,0.1738]
[1756904853044,0.1144,4369.7,4369.6,0.1738]
[1756904853251,0.2963,4370.6,4369.7,0.0594]
[1756904853446,0.2963,4370.6,4369.6,0.94400758]
[1756904853447,0.53501912,4370.4,4369.9,0.0594]
[1756904853647,0.53501912,4370.3,4370.0,0.28913758]
[1756904853847,0.53501912,4370.2,4370.1,0.34853758]
[1756904854950,0.83131912,4370.2,4370.1,0.28913758]
[1756904857854,4.83131912,4370.2,4370.1,0.28913758]
[1756904858046,0.1193,4369.5,4369.3,40.8]
[1756904858247,0.83131912,4369.4,4369.3,40.8]
[1756904858555,0.83131912,4369.4,4369.3,41.09028055]
[1756904859151,0.53501912,4369.4,4369.3,41.14968055]
[1756904859357,0.53501912,4369.8,4369.3,41.14968055]
[1756904859551,0.2963,4369.7,4369.4,0.34968055]
[1756904859751,0.83131912,4369.6,4369.5,0.29028055]
[1756904860148,4.83131912,4369.6,4369.5,0.29028055]
[1756904860354,0.2963,4369.4,4368.3,0.243]
[1756904860652,0.53501912,4369.3,4368.3,0.42312278]
[1756904860848,0.1193,4369.5,4368.6,40.8]
[1756904860849,0.2963,4368.9,4368.6,40.8]
[1756904861051,0.2963,4368.7,4368.6,40.8]
[1756904861355,0.1193,4368.5,4367.9,1.38770175]
[1756904861748,0.1193,4368.5,4368.0,40.8596]
[1756904862053,0.3054,4368.3,4368.0,40.8596]
[1756904862454,0.1193,4368.5,4368.0,40.8596]
[1756904862756,0.3054,4368.3,4368.0,40.8596]
[1756904863546,0.1193,4368.5,4368.0,40.8]
[1756904863753,0.53640573,4368.4,4368.0,40.8]
[1756904863959,0.53640573,4368.3,4368.0,40.8]
[1756904864158,0.3054,4368.1,4368.0,40.8]
[1756904864355,0.84180573,4368.1,4367.9,1.14470175]
[1756904864556,0.96079118,4368.0,4367.9,1.14470175]
[1756904866763,0.53639118,4368.0,4367.9,1.20430175]
[1756904867353,0.4247,4368.5,4367.9,5.20430175]
[1756904867554,0.5361218,4368.4,4367.9,1.14470175]
[1756904867754,0.119,4368.0,4367.9,1.14470175]
[1756904867959,0.9605218,4368.0,4367.9,1.14470175]
[1756904868749,0.9605218,4368.0,4367.9,1.33550175]
[1756904869558,1.1553218,4368.0,4367.9,1.33550175]
[1756904869758,0.9605218,4368.0,4367.9,1.33550175]
[1756904870165,0.4244,4368.0,4367.9,1.33550175]
[1756904872060,0.1193,4368.5,4368.0,0.0596]